bitfinex/quotes_SOLUSD_20240702
["timestamp","ask_amount","ask_price","bid_price","bid_amount"]
[1719934789363,28.14042932,148.45,148.36,16.8507]
[1719934789791,28.14042932,148.45,148.39,6.7389]
[1719934790497,21.40412932,148.45,148.4,6.7385]
[1719934790700,13.20013959,148.45,148.4,6.7385]
[1719934791765,13.20013959,148.45,148.41,6.738]
[1719934791983,16.6256,148.46,148.42,6.7376]
[1719934793291,16.6256,148.46,148.41,6.7379]
[1719934794868,16.6256,148.46,148.42,6.7375]
[1719934795491,16.6256,148.46,148.41,6.7379]
[1719934796912,16.6256,148.46,148.37,31.8833]
[1719934797280,16.6256,148.46,148.33,51.76882625]
[1719934797480,6.7368,148.44,148.37,6.7398]
[1719934798590,6.7364,148.45,148.38,6.7393]
[1719934800576,6.7364,148.45,148.39,6.7389]
[1719934801183,6.7367,148.44,148.38,6.7393]
[1719934801389,6.1489,148.43,148.34,2.96291233]
[1719934801600,6.1489,148.43,148.37,6.7397]
[1719934801904,6.1489,148.43,148.34,22.96291233]
[1719934801905,6.1489,148.43,148.39,23.5859]
[1719934802072,6.1489,148.43,148.39,16.8471]
[1719934802495,6.1489,148.43,148.39,23.586]
[1719934802786,6.1489,148.43,148.4,6.7384]
[1719934802991,6.1489,148.43,148.4,8.08593739]
[1719934803492,6.1489,148.43,148.39,23.5859]
[1719934803798,6.1489,148.43,148.36,16.8503]
[1719934803967,12.8862,148.43,148.36,16.8503]
[1719934804295,6.1489,148.43,148.38,6.7391]
[1719934804595,6.1489,148.43,148.38,23.5872]
[1719934807993,12.8862,148.43,148.37,6.7397]
[1719934808196,12.8862,148.43,148.36,6.7403]
[1719934808600,6.1489,148.43,148.38,6.7393]
[1719934808784,6.1489,148.43,148.39,6.7388]
[1719934809097,6.1489,148.43,148.38,6.7394]
[1719934809496,6.1489,148.43,148.37,16.8493]
[1719934809689,6.1489,148.43,148.38,6.7393]
[1719934810104,6.1489,148.43,148.39,16.8471]
[1719934810302,7.03963077,148.45,148.4,1.34744329]
[1719934810482,16.6256,148.46,148.4,1.34744329]
[1719934810683,16.6256,148.46,148.39,16.8471]
[1719934810985,16.6256,148.46,148.4,6.7383]
[1719934811395,16.6256,148.46,148.41,16.845]
[1719934811593,16.6256,148.46,148.41,23.5829]
[1719934812100,16.6256,148.46,148.42,6.7375]
[1719934812308,16.6256,148.46,148.42,6.7374]
[1719934814388,16.6256,148.46,148.41,16.845]
[1719934814591,23.3618,148.46,148.4,6.7385]
[1719934814792,23.3618,148.46,148.34,29.63041233]
[1719934814793,16.6256,148.46,148.41,6.738]
[1719934816509,6.3896,148.47,148.42,1.34736113]
[1719934816807,15.7054,148.5,148.47,6.7353]
[1719934817027,15.7054,148.5,148.41,50.86]
[1719934817188,22.4395,148.5,148.41,30.57]
[1719934817505,6.7344,148.49,148.43,6.7368]
[1719934818082,22.4395,148.5,148.43,23.5793]
[1719934818502,15.7054,148.5,148.44,6.7365]
[1719934819430,15.7054,148.5,148.43,16.8425]
[1719934819431,22.4394,148.5,148.43,16.8425]
[1719934819712,22.4394,148.5,148.43,23.5795]
[1719934820301,15.7054,148.5,148.45,6.7362]
[1719934821410,22.4395,148.5,148.43,23.5792]
[1719934821917,6.7345,148.49,148.42,6.7376]
[1719934822210,22.4394,148.5,148.43,6.7371]
[1719934822412,15.7054,148.5,148.44,6.7365]
[1719934822794,22.4394,148.5,148.44,6.7365]
[1719934823305,15.7054,148.5,148.44,6.7365]
[1719934823491,15.7054,148.5,148.38,50.86]
[1719934823697,15.7054,148.5,148.46,6.7357]
[1719934825020,15.7054,148.5,148.45,6.7362]
[1719934825208,15.7054,148.5,148.44,23.578]
[1719934827420,22.4394,148.5,148.44,23.578]
[1719934828121,15.7054,148.5,148.44,23.578]
[1719934828917,6.0253,148.51,148.47,16.8376]
[1719934829116,6.0253,148.51,148.49,6.7343]
[1719934829515,6.0253,148.51,148.48,6.7345]
[1719934829717,6.0253,148.51,148.47,38.8427]
[1719934830219,21.2953,148.51,148.47,23.5727]
[1719934831437,21.2953,148.51,148.48,6.7346]
[1719934831733,6.0253,148.51,148.48,6.7347]
[1719934831927,6.0253,148.51,148.47,16.8376]
[1719934832104,6.0253,148.51,148.48,6.7346]
[1719934832915,16.5303,148.54,148.51,6.7331]
[1719934833603,16.5303,148.54,148.52,6.7329]
[1719934834116,16.5303,148.54,148.51,6.7334]
[1719934834317,16.5303,148.54,148.51,23.5669]
[1719934835907,0.8490933,148.56,148.53,16.8306]
[1719934836111,0.8490933,148.56,148.55,6.7317]
[1719934842429,0.8490933,148.56,148.55,8.07757883]
[1719934843740,0.8490933,148.56,148.55,28.07757883]
[1719934843939,0.8490933,148.56,148.55,26.7317]
[1719934846153,22.5817,148.64,148.55,55.7779]
[1719934846327,22.5817,148.64,148.61,6.7286]
[1719934846650,6.726,148.68,148.56,22.9585246]
[1719934846651,22.3249,148.68,148.62,8.07386903]
[1719934847335,22.3249,148.68,148.63,8.07314842]
[1719934847639,22.3249,148.68,148.62,6.7284]
[1719934848140,22.3249,148.68,148.62,23.5491]
[1719934849323,22.3249,148.68,148.63,1.34535431]
[1719934849540,22.3249,148.68,148.63,6.728]
[1719934850231,22.3249,148.68,148.62,23.5492]
[1719934850432,29.0509,148.68,148.62,16.8207]
[1719934850634,6.7275,148.65,148.55,15.4879]
[1719934850842,6.7276,148.64,148.55,15.4879]
[1719934851343,6.7278,148.64,148.57,6.7307]
[1719934851530,6.7281,148.63,148.56,9.6896246]
[1719934851860,16.8181,148.65,148.56,2.9585246]
[1719934852025,21.6546,148.69,148.62,16.8207]
[1719934852554,28.38,148.69,148.62,23.5489]
[1719934853120,21.6546,148.69,148.6,6.7294]
[1719934853758,6.7268,148.66,148.6,6.7294]
[1719934853930,15.25,148.65,148.6,6.7294]
[1719934854248,15.25,148.65,148.6,15.25]
[1719934854553,15.25,148.65,148.59,6.7297]
[1719934854554,15.25,148.64,148.59,6.7299]
[1719934854726,15.25,148.64,148.59,15.25]
[1719934854926,15.25,148.63,148.58,21.9802]
[1719934855154,15.25,148.63,148.58,6.7302]
[1719934855333,15.25,148.64,148.59,21.9798]
[1719934855825,6.7268,148.66,148.59,6.7298]
[1719934856026,45.0,148.68,148.59,6.7298]
[1719934856245,6.7269,148.66,148.6,6.7294]
[1719934858223,51.7262,148.68,148.61,6.7287]
[1719934858954,6.7264,148.67,148.6,6.7293]
[1719934859477,51.7267,148.66,148.6,6.7293]
[1719934859828,22.7336,148.65,148.56,2.9585246]
[1719934860045,6.7286,148.62,148.55,6.7314]
[1719934860355,6.7282,148.63,148.56,6.7312]
[1719934861346,6.7285,148.62,148.56,6.7312]
[1719934861567,22.7336,148.65,148.54,16.8296]
[1719934862071,45.0,148.64,148.54,16.8296]
[1719934862251,6.729,148.61,148.55,6.7315]
[1719934862567,22.4111,148.59,148.54,23.5617]
[1719934863143,22.4111,148.59,148.54,16.8296]
[1719934863571,22.4111,148.59,148.53,6.7324]
[1719934863787,22.4111,148.59,148.51,16.8331]
[1719934863950,6.7306,148.58,148.51,23.5663]
[1719934864271,51.7306,148.58,148.51,23.5663]
[1719934864742,51.7306,148.58,148.52,6.733]
[1719934865476,45.0,148.58,148.52,6.733]
[1719934866171,51.7303,148.58,148.52,6.733]
[1719934867673,45.0,148.58,148.52,6.733]
[1719934868172,45.0,148.58,148.53,6.7325]
[1719934869477,45.0,148.58,148.52,6.7329]
[1719934870459,51.7304,148.58,148.52,6.7329]
[1719934870656,6.7309,148.57,148.51,23.5666]
[1719934871079,6.7309,148.57,148.51,16.8331]
[1719934872023,6.7313,148.56,148.51,16.8331]
[1719934872150,6.7309,148.57,148.51,16.8331]
[1719934872476,6.7309,148.57,148.51,23.5665]
[1719934873283,29.6977,148.55,148.48,23.5712]
[1719934874686,22.9657,148.55,148.49,6.7343]
[1719934875358,29.6976,148.55,148.49,6.7343]
[1719934875792,15.27,148.54,148.49,22.0043]
[1719934876779,15.27,148.53,148.48,32.1065]
[1719934876984,22.0027,148.53,148.48,15.27]
[1719934877192,15.27,148.53,148.48,15.27]
[1719934877486,15.27,148.52,148.47,6.7352]
[1719934877693,15.27,148.52,148.47,15.27]
[1719934877872,15.27,148.51,148.46,22.0057]
[1719934878277,15.27,148.52,148.47,22.0053]
[1719934878966,15.27,148.52,148.47,22.0052]
[1719934879275,15.27,148.52,148.47,32.1083]
[1719934879599,22.0032,148.52,148.45,6.7361]
[1719934879789,45.0,148.53,148.45,6.7361]
[1719934879790,15.27,148.5,148.46,15.27]
[1719934879961,15.27,148.5,148.45,22.0061]
[1719934880275,15.27,148.5,148.45,15.27]
[1719934880870,51.7338,148.51,148.45,15.27]
[1719934881097,60.27,148.51,148.46,15.27]
[1719934881297,22.29467182,148.51,148.46,15.27]
[1719934881466,7.02467182,148.51,148.47,15.27]
[1719934882087,13.75817182,148.51,148.46,16.8394]
[1719934882295,7.02467182,148.51,148.47,15.27]
[1719934883590,29.02827182,148.51,148.46,32.1094]
[1719934884462,6.7343,148.5,148.45,15.27]
[1719934884665,60.27,148.5,148.43,6.737]
[1719934884869,15.27,148.49,148.4,16.8457]
[1719934885087,22.0046,148.49,148.44,15.27]
[1719934885279,44.7524,148.49,148.42,6.7373]
[1719934885570,44.7524,148.49,148.4,16.8457]
[1719934885571,6.7353,148.47,148.4,61.08]
[1719934885775,15.27,148.47,148.43,15.27]
[1719934886297,22.0049,148.48,148.43,15.27]
[1719934886472,15.27,148.47,148.43,15.27]
[1719934888095,15.27,148.47,148.38,15.6899]
[1719934888096,22.7478,148.49,148.44,15.27]
[1719934888289,22.7478,148.49,148.43,6.737]
[1719934888483,29.4822,148.49,148.45,15.27]
[1719934888994,44.7522,148.49,148.44,15.27]
[1719934889500,29.4822,148.49,148.45,15.27]
[1719934890086,6.7351,148.48,148.44,15.27]
[1719934890694,22.0051,148.48,148.43,15.27]
[1719934890894,29.4824,148.49,148.43,15.27]
[1719934891090,22.7478,148.49,148.44,15.27]
[1719934891395,22.29467182,148.51,148.46,15.27]
[1719934891701,7.02467182,148.51,148.47,15.27]
[1719934891885,13.75817182,148.51,148.48,15.27]
[1719934892087,38.4553,148.52,148.48,15.27]
[1719934892896,6.7336,148.51,148.48,15.27]
[1719934893094,6.7336,148.51,148.47,15.27]
[1719934893892,22.0036,148.51,148.46,15.27]
[1719934898218,15.27,148.5,148.45,15.27]
[1719934898509,22.0041,148.5,148.45,15.27]
[1719934898806,6.7349,148.48,148.45,15.27]
[1719934899391,6.7346,148.49,148.45,15.27]
[1719934900222,6.7346,148.49,148.46,15.27]
[1719934900509,6.7349,148.48,148.46,15.27]
[1719934900694,6.7349,148.48,148.45,15.27]
[1719934901685,6.7346,148.49,148.45,15.27]
[1719934905305,7.02466183,148.51,148.44,1.34726524]
[1719934905491,22.29466183,148.51,148.46,15.27]
[1719934906004,29.02846183,148.51,148.46,15.27]
[1719934906887,6.7341,148.5,148.46,15.27]
[1719934907494,6.7341,148.5,148.47,15.27]
[1719934907807,6.7343,148.5,148.46,15.27]
[1719934909493,22.29466183,148.51,148.42,6.7374]
[1719934909687,6.7345,148.49,148.46,15.27]
[1719934909893,6.7341,148.5,148.46,15.27]
[1719934911619,29.02826183,148.51,148.46,15.27]
[1719934911906,7.02466183,148.51,148.48,15.27]
[1719934912109,16.4521,148.52,148.49,15.27]
[1719934912300,16.4521,148.52,148.4,81.37]
[1719934912301,6.0228,148.53,148.5,15.27]
[1719934912692,6.0228,148.53,148.51,15.27]
[1719934913393,12.7555,148.53,148.51,15.27]
[1719934913913,12.7555,148.53,148.5,15.27]
[1719934914114,6.0228,148.53,148.45,6.7359]
[1719934914409,21.2928,148.53,148.48,15.27]
[1719934914621,6.7332,148.52,148.45,6.7359]
[1719934914993,6.7332,148.52,148.48,15.27]
[1719934915191,21.2928,148.53,148.49,15.27]
[1719934915192,12.7556,148.53,148.49,15.27]
[1719934915794,12.7556,148.53,148.45,6.7362]
[1719934915795,6.0228,148.53,148.45,6.7362]
[1719934916109,6.0228,148.53,148.48,15.27]
[1719934916110,21.2928,148.53,148.48,15.27]
[1719934916309,6.7331,148.52,148.49,15.27]
[1719934916814,6.0228,148.53,148.44,16.4921]
[1719934917025,21.2928,148.53,148.48,15.27]
[1719934917411,28.0257,148.53,148.48,15.27]
[1719934918600,6.7331,148.52,148.46,6.7354]
[1719934918801,6.7331,148.52,148.49,15.27]
[1719934919114,6.7331,148.52,148.46,6.7354]
[1719934919310,6.7331,148.52,148.48,15.27]
[1719934919528,28.0255,148.53,148.48,15.27]
[1719934920919,28.0255,148.53,148.49,15.27]
[1719934921119,6.7331,148.52,148.45,6.7361]
[1719934921419,21.2928,148.53,148.48,15.27]
[1719934921605,28.0257,148.53,148.47,6.7352]
[1719934921804,28.0257,148.53,148.48,15.27]
[1719934924819,15.27,148.52,148.4,89.39806381]
[1719934925016,15.27,148.51,148.46,15.27]
[1719934925320,22.0035,148.51,148.46,15.27]
[1719934925714,22.0035,148.51,148.45,6.7359]
[1719934925915,15.27,148.51,148.46,15.27]
[1719934926724,22.0036,148.51,148.45,6.7359]
[1719934926918,22.0036,148.51,148.46,15.27]
[1719934927230,15.27,148.51,148.46,15.27]
[1719934927727,22.0036,148.51,148.45,6.7359]
[1719934928033,15.27,148.51,148.46,15.27]
[1719934928233,15.27,148.51,148.46,6.7357]
[1719934928530,31.2688,148.5,148.45,6.7362]
[1719934928721,31.2688,148.5,148.45,15.27]
[1719934928905,15.27,148.49,148.44,6.7363]
[1719934929105,15.9988,148.5,148.44,22.0063]
[1719934929432,67.7328,148.5,148.45,15.27]
[1719934929632,67.7328,148.5,148.44,22.0063]
[1719934930013,15.9988,148.5,148.47,15.27]
[1719934930320,15.9988,148.5,148.48,15.27]
[1719934930712,28.0255,148.53,148.48,15.27]
[1719934930911,21.2928,148.53,148.48,15.27]
[1719934931314,28.0255,148.53,148.48,15.27]
[1719934932522,6.7333,148.52,148.48,15.27]
[1719934933730,6.7335,148.51,148.48,15.27]
[1719934933931,6.7335,148.51,148.47,15.27]
[1719934935036,22.0032,148.52,148.47,15.27]
[1719934935241,6.7332,148.52,148.48,15.27]
[1719934935720,6.7336,148.51,148.47,15.27]
[1719934937133,23.51106112,148.54,148.5,22.0039]
[1719934937332,7.02026112,148.54,148.52,15.27]
[1719934937531,14.51204865,148.57,148.53,15.27]
[1719934938315,29.78204865,148.57,148.52,15.27]
[1719934938516,36.51314865,148.57,148.52,15.27]
[1719934939022,6.7313,148.56,148.52,15.27]
[1719934939561,6.7313,148.56,148.53,15.27]
[1719934940611,6.5509,148.57,148.53,15.27]
[1719934940810,7.01891652,148.59,148.47,81.37]
[1719934940811,7.01891652,148.59,148.48,27.89226542]
[1719934941037,14.40334865,148.61,148.57,15.27]
[1719934941338,6.7297,148.6,148.57,15.27]
[1719934941631,6.7299,148.59,148.57,15.27]
[1719934941838,14.40334865,148.61,148.5,6.7336]
[1719934941839,29.67334865,148.61,148.5,6.7336]
[1719934942017,29.67334865,148.61,148.54,15.27]
[1719934942018,6.7308,148.57,148.54,15.27]
[1719934942222,6.7304,148.58,148.54,15.27]
[1719934942725,22.0,148.59,148.54,15.27]
[1719934942925,21.9995,148.6,148.55,15.27]
[1719934943434,6.7295,148.6,148.56,15.27]
[1719934944015,6.7295,148.6,148.57,15.27]
[1719934945725,6.73,148.59,148.56,15.27]
[1719934946620,6.73,148.59,148.52,23.0417]
[1719934946828,6.73,148.59,148.56,15.27]
[1719934947629,15.27,148.6,148.51,51.7333]
[1719934947826,6.7305,148.58,148.55,15.27]
[1719934949322,6.7299,148.59,148.55,15.27]
[1719934950147,6.4422,148.61,148.56,15.27]
[1719934950351,6.4422,148.61,148.58,15.27]
[1719934950550,6.4422,148.61,148.55,6.7313]
[1719934950845,6.4422,148.61,148.58,15.27]
[1719934951344,13.1713,148.61,148.58,15.27]
[1719934951753,6.7295,148.6,148.57,15.27]
[1719934951940,6.7299,148.59,148.56,15.27]
[1719934952253,6.7295,148.6,148.56,15.27]
[1719934952462,6.4422,148.61,148.57,15.27]
[1719934952463,13.1713,148.61,148.57,15.27]
[1719934953051,13.1713,148.61,148.58,15.27]
[1719934954851,6.7295,148.6,148.58,15.27]
[1719934955824,6.7295,148.6,148.57,15.27]
[1719934959952,6.7299,148.59,148.57,15.27]
[1719934963755,6.7296,148.6,148.57,15.27]
[1719934963935,6.4422,148.61,148.54,67.812]
[1719934963936,6.4422,148.61,148.59,15.27]
[1719934964137,7.01992064,148.62,148.6,15.27]
[1719934964337,6.7282,148.63,148.6,15.27]
[1719934964555,6.7282,148.63,148.61,15.27]
[1719934965966,6.7285,148.62,148.6,15.27]
[1719934966257,6.7285,148.62,148.59,15.27]
[1719934968666,6.7285,148.62,148.6,15.27]
[1719934969763,6.7283,148.63,148.6,15.27]
[1719934971965,7.0160608,148.65,148.62,15.27]
[1719934972268,23.1622,148.66,148.62,15.27]
[1719934972470,7.01949454,148.68,148.65,15.27]
[1719934972641,7.01949454,148.68,148.62,15.5561]
[1719934972642,0.8490933,148.71,148.67,21.9963]
[1719934973046,0.8490933,148.71,148.7,15.27]
[1719934979577,0.8490933,148.71,148.7,15.24536259]
[1719934980074,0.8490933,148.71,148.7,21.97026259]
[1719934980376,0.8490933,148.71,148.7,66.97026259]
[1719934980971,0.8490933,148.71,148.7,21.97026259]
[1719934984474,0.8490933,148.71,148.62,20.29]
[1719934984662,0.8490933,148.71,148.7,15.27]
[1719934985759,0.8490933,148.71,148.7,21.9949]
[1719934986173,0.8490933,148.71,148.63,15.7338]
[1719934986381,0.8490933,148.71,148.68,15.27]
[1719934986885,0.8490933,148.71,148.69,15.27]
[1719934987670,0.8490933,148.71,148.66,6.7265]
[1719934987871,0.8490933,148.71,148.68,15.27]
[1719934988378,0.8490933,148.71,148.66,6.7265]
[1719934988685,0.8490933,148.71,148.67,15.27]
[1719934989467,0.8490933,148.71,148.68,15.27]
[1719934990086,0.8490933,148.71,148.67,6.7261]
[1719934990287,16.1190933,148.71,148.67,6.7261]
[1719934992985,22.7741933,148.71,148.59,31.5944]
[1719934993193,15.27,148.67,148.62,21.9985]
[1719934993367,15.27,148.66,148.63,6.728]
[1719934993572,15.27,148.66,148.61,15.27]
[1719934993775,15.27,148.66,148.59,16.3244]
[1719934994165,15.27,148.64,148.57,253.1]
[1719934994375,15.27,148.63,148.59,21.9997]
[1719934994566,15.27,148.63,148.58,6.7302]
[1719934994778,15.27,148.62,148.57,22.0006]
[1719934995072,15.27,148.61,148.57,6.7306]
[1719934997292,15.27,148.61,148.58,6.7303]
[1719934998588,15.27,148.61,148.56,6.7312]
[1719934998792,15.27,148.6,148.56,6.7312]
[1719934998968,51.5984,148.65,148.55,15.27]
[1719934998969,6.7281,148.63,148.57,6.7307]
[1719934999268,6.7281,148.63,148.51,20.73118146]
[1719934999269,15.27,148.6,148.56,22.0011]
[1719934999472,15.27,148.6,148.56,6.7311]
[1719934999671,15.27,148.59,148.54,6.7319]
[1719934999897,15.27,148.59,148.55,6.7316]
[1719935000287,15.27,148.59,148.54,22.0021]
[1719935000798,22.2572,148.61,148.54,22.0021]
[1719935001097,15.27,148.59,148.54,22.0021]
[1719935001773,15.27,148.59,148.55,6.7316]
[1719935002186,15.27,148.59,148.51,15.3743]
[1719935002393,15.27,148.59,148.49,9.44161929]
[1719935002394,15.27,148.56,148.52,22.0026]
[1719935002980,15.27,148.56,148.53,6.7325]
[1719935003290,12.8711,148.59,148.53,6.7325]
[1719935003499,6.141,148.59,148.53,6.7325]
[1719935004086,12.8709,148.59,148.53,6.7325]
[1719935005293,6.141,148.59,148.54,6.7317]
[1719935005999,6.141,148.59,148.49,2.95991929]
[1719935006184,45.0,148.58,148.52,15.27]
[1719935007402,12.8712,148.59,148.52,15.27]
[1719935008279,15.5278,148.61,148.56,15.27]
[1719935008482,15.5278,148.61,148.58,6.7302]
[1719935008698,15.5278,148.61,148.57,15.27]
[1719935009001,21.6491,148.63,148.59,15.27]
[1719935009394,6.3791,148.63,148.61,6.7289]
[1719935009704,6.3791,148.63,148.6,15.27]
[1719935011094,6.3791,148.63,148.59,15.27]
[1719935011888,6.3791,148.63,148.58,6.7302]
[1719935012493,23.1904,148.65,148.59,6.7298]
[1719935012494,16.4632,148.65,148.59,6.7298]
[1719935012897,16.4632,148.65,148.54,50.75]
[1719935013206,6.0842,148.67,148.57,30.5]
[1719935013405,6.0842,148.67,148.62,6.7284]
[1719935013588,6.0842,148.67,148.61,6.7288]
[1719935015101,6.0842,148.67,148.62,6.7285]
[1719935015299,12.8106,148.67,148.6,45.0]
[1719935015502,6.0842,148.67,148.57,30.5]
[1719935015711,6.7273,148.65,148.59,6.7295]
[1719935016989,6.7269,148.66,148.59,6.7295]
[1719935017404,6.0842,148.67,148.58,6.7302]
[1719935017605,6.7277,148.64,148.57,6.7306]
[1719935018321,6.7277,148.64,148.58,6.7302]
[1719935018910,6.7277,148.64,148.57,6.7304]
[1719935019099,6.7277,148.64,148.58,6.73]
[1719935019498,6.0842,148.67,148.54,30.5]
[1719935019706,6.0842,148.67,148.57,30.5]
[1719935019902,6.0842,148.67,148.58,1.34564308]
[1719935020114,6.0842,148.67,148.61,6.7289]
[1719935020115,12.8107,148.67,148.61,6.7289]
[1719935020295,6.0842,148.67,148.58,45.0]
[1719935020498,6.7272,148.65,148.59,6.7297]
[1719935020797,6.7269,148.66,148.59,6.7297]
[1719935021212,6.7272,148.65,148.59,6.7297]
[1719935021522,6.7277,148.64,148.57,30.5]
[1719935021895,6.7281,148.63,148.57,6.7306]
[1719935023008,6.7278,148.64,148.57,6.7306]
[1719935023211,21.9901,148.63,148.57,6.7306]
[1719935023608,21.9901,148.63,148.55,9.68992376]
[1719935023609,15.262,148.63,148.55,9.68992376]
[1719935023807,6.7291,148.61,148.54,6.732]
[1719935024011,12.8325,148.61,148.54,6.732]
[1719935024323,12.8325,148.61,148.55,6.7315]
[1719935026220,6.1034,148.61,148.56,6.7312]
[1719935026610,6.1034,148.61,148.55,6.7315]
[1719935026810,12.8325,148.61,148.55,6.7315]
[1719935027331,6.7295,148.6,148.54,6.7321]
[1719935028426,6.73,148.59,148.53,6.7324]
[1719935030125,6.7296,148.6,148.53,6.7324]
[1719935030427,6.1034,148.61,148.53,6.7324]
[1719935030627,45.0,148.6,148.53,6.7324]
[1719935030822,6.7303,148.59,148.52,6.7329]
[1719935032223,21.7436,148.58,148.52,6.7329]
[1719935032416,6.731,148.57,148.51,6.7333]
[1719935032616,28.4741,148.58,148.51,6.7333]
[1719935033526,6.7309,148.57,148.51,6.7333]
[1719935036229,6.7313,148.56,148.5,6.7339]
[1719935036429,6.7309,148.57,148.51,6.7334]
[1719935036912,28.75907464,148.58,148.44,269.542]
[1719935037111,45.0,148.57,148.45,65.0]
[1719935037414,45.0,148.57,148.49,6.7343]
[1719935037415,6.7318,148.55,148.49,6.7343]
[1719935037815,15.27,148.53,148.49,6.7343]
[1719935040037,15.27,148.53,148.5,6.7339]
[1719935040244,15.27,148.54,148.49,22.0042]
[1719935040536,6.7317,148.55,148.49,22.0042]
[1719935040838,45.0,148.57,148.48,22.0047]
[1719935040839,15.27,148.53,148.48,22.0047]
[1719935042227,22.0029,148.53,148.47,6.7352]
[1719935042529,61.8274,148.57,148.47,22.0053]
[1719935042530,15.27,148.51,148.47,22.0053]
[1719935043133,15.27,148.52,148.47,22.0053]
[1719935044035,15.27,148.51,148.44,19.4029163]
[1719935044231,15.27,148.5,148.46,15.27]
[1719935045044,15.27,148.5,148.46,22.0058]
[1719935045241,15.27,148.5,148.44,2.9609163]
[1719935045407,15.27,148.5,148.45,15.27]
[1719935045831,15.27,148.5,148.45,22.0062]
[1719935046235,15.27,148.51,148.47,6.7353]
[1719935046920,37.3795,148.52,148.47,22.0053]
[1719935047236,6.7343,148.5,148.44,6.7365]
[1719935047538,6.734,148.5,148.46,15.27]
[1719935047714,15.27,148.51,148.46,15.27]
[1719935047914,15.27,148.51,148.42,6.1091]
[1719935047915,15.27,148.5,148.45,15.27]
[1719935048225,22.0041,148.5,148.45,15.27]
[1719935049939,22.1095,148.52,148.46,22.0058]
[1719935050233,6.7339,148.51,148.45,6.7362]
[1719935050440,22.004,148.5,148.46,15.27]
[1719935050944,22.004,148.5,148.45,15.27]
[1719935051735,22.1095,148.52,148.42,6.1091]
[1719935051919,44.1129,148.52,148.47,15.27]
[1719935052151,7.02392367,148.53,148.52,6.733]
[1719935052342,6.1871,148.59,148.53,6.7323]
[1719935052656,6.1871,148.59,148.55,15.27]
[1719935053544,12.9171,148.59,148.55,15.27]
[1719935053731,12.9171,148.59,148.53,6.7325]
[1719935053935,12.9171,148.59,148.54,1.34618097]
[1719935055846,7.01669068,148.62,148.5,50.77]
[1719935056130,6.7294,148.6,148.54,6.7321]
[1719935056330,23.83849068,148.62,148.51,47.95952067]
[1719935057229,6.7305,148.58,148.51,54.69272067]
[1719935058535,6.7305,148.58,148.52,6.733]
[1719935060644,6.7309,148.57,148.51,54.69302067]
[1719935060845,6.7309,148.57,148.51,9.69302067]
[1719935062048,21.6957,148.58,148.51,2.95952067]
[1719935062422,6.7317,148.56,148.51,2.95952067]
[1719935062637,6.7317,148.56,148.49,6.734]
[1719935062842,6.7317,148.56,148.5,6.7339]
[1719935064740,6.7317,148.56,148.47,45.7327]
[1719935064741,6.7318,148.55,148.49,6.7343]
[1719935065326,6.7322,148.54,148.48,6.7347]
[1719935065834,6.7319,148.55,148.49,6.7344]
[1719935066241,6.7314,148.56,148.5,6.7336]